[Event "Mistrovství Čech mládeže 2023 - HD14"]
[Site "Harrachov, Czech Republic"]
[Date "2023.10.27"]
[Round "8.4"]
[White "Bludský, Hynek"]
[Black "Švadlenka, Dominik"]
[Result "0-1"]
[TimeControl "90m + 30s"]
[WhiteElo "1547"]
[BlackElo "1710"]

1. e4 {[%clk 01:30:57]} {[%emt 00:00:02]} c6 {[%clk 01:30:58]} {[%emt
00:00:03]} 2. d4 {[%clk 01:31:22]} {[%emt 00:00:05]} d5 {[%clk 01:31:23]}
{[%emt 00:00:06]} 3. e5 {[%clk 01:31:48]} {[%emt 00:00:03]} c5 {[%clk
01:31:50]} {[%emt 00:00:03]} 4. dxc5 {[%clk 01:32:08]} {[%emt 00:00:10]} e6
{[%clk 01:32:16]} {[%emt 00:00:04]} 5. a3 {[%clk 01:32:22]} {[%emt 00:00:16]}
Bxc5 {[%clk 01:32:40]} {[%emt 00:00:06]} 6. b4 {[%clk 01:32:48]} {[%emt
00:00:04]} Be7 {[%clk 01:32:53]} {[%emt 00:00:17]} 7. Bb2 {[%clk 01:32:57]}
{[%emt 00:00:21]} Qc7 {[%clk 01:32:40]} {[%emt 00:00:43]} 8. Nf3 {[%clk
01:32:16]} {[%emt 00:01:11]} Nh6 {[%clk 01:32:28]} {[%emt 00:00:42]} 9. Bd3
{[%clk 01:31:20]} {[%emt 00:01:26]} O-O {[%clk 01:31:28]} {[%emt 00:01:30]} 10.
O-O {[%clk 01:31:04]} {[%emt 00:00:47]} Nc6 {[%clk 01:30:33]} {[%emt 00:01:25]}
11. Re1 {[%clk 01:29:42]} {[%emt 00:01:51]} Rd8 {[%clk 01:29:14]} {[%emt
00:01:50]} 12. Qd2 {[%clk 01:28:37]} {[%emt 00:01:35]} Nf5 {[%emt 00:09:56]} 13.
Bxf5 {[%emt 00:00:07]} exf5 {[%emt 00:00:45]} 14. Nc3 {[%emt 00:01:34]} Be6
{[%emt 00:01:00]} 15. Nb5 {[%emt 00:02:39]} Qd7 {[%emt 00:00:57]} 16. Nbd4
{[%emt 00:01:14]} Rac8 {[%emt 00:03:34]} 17. Rad1 {[%clk 01:21:36]} {[%emt
00:00:10]} a6 {[%clk 01:15:52]} {[%emt 00:03:56]} 18. h3 {[%clk 01:19:06]}
{[%emt 00:03:00]} Nxd4 {[%clk 01:06:05]} {[%emt 00:10:18]} 19. Nxd4 {[%clk
01:18:54]} {[%emt 00:00:42]} h6 {[%clk 01:05:42]} {[%emt 00:00:53]} 20. f4
{[%clk 01:17:40]} {[%emt 00:01:43]} Rc4 {[%clk 01:04:40]} {[%emt 00:01:32]} 21.
c3 {[%clk 01:13:23]} {[%emt 00:04:47]} Rdc8 {[%clk 01:01:32]} {[%emt 00:03:39]}
22. Kh2 {[%clk 01:11:44]} {[%emt 00:02:09]} Bd8 {[%clk 00:59:15]} {[%emt
00:02:47]} 23. g3 {[%clk 01:05:58]} {[%emt 00:06:16]} Bb6 {[%clk 00:57:38]}
{[%emt 00:02:08]} 24. Nf3 {[%clk 01:00:31]} {[%emt 00:05:56]} d4 {[%clk
00:44:36]} {[%emt 00:13:32]} 25. Qe2 {[%clk 00:43:37]} {[%emt 00:17:24]} Qa4
{[%clk 00:44:09]} {[%emt 00:00:58]} 26. cxd4 {[%clk 00:35:44]} {[%emt
00:08:23]} Rc2 {[%clk 00:41:16]} {[%emt 00:03:23]} 27. Rd2 {[%clk 00:35:55]}
{[%emt 00:00:18]} Rxd2 {[%clk 00:36:07]} {[%emt 00:05:40]} 28. Nxd2 {[%clk
00:36:14]} {[%emt 00:00:11]} Rc2 {[%clk 00:36:13]} {[%emt 00:00:24]} 29. Bc1
{[%clk 00:28:43]} {[%emt 00:08:01]} Qc6 {[%clk 00:34:14]} {[%emt 00:02:30]} 30.
Qf1 {[%clk 00:26:42]} {[%emt 00:02:31]} Bxd4 {[%clk 00:33:17]} {[%emt
00:01:28]} 31. h4 {[%clk 00:25:40]} {[%emt 00:01:32]} Qc3 {[%clk 00:28:37]}
{[%emt 00:05:10]} 32. Rd1 {[%clk 00:24:54]} {[%emt 00:01:16]} Rxc1 {[%clk
00:26:56]} {[%emt 00:02:11]} 33. Rxc1 {[%clk 00:24:48]} {[%emt 00:00:36]} Qxd2+
{[%clk 00:27:21]} {[%emt 00:00:05]} 34. Kh3 {[%clk 00:24:51]} {[%emt 00:00:26]}
g5 {[%clk 00:21:38]} {[%emt 00:06:13]} 35. hxg5 {[%emt 00:01:07]} hxg5 {[%clk
00:21:54]} 36. fxg5 {[%clk 00:20:14]} {[%emt 00:04:44]} f4+ {[%clk 00:22:04]}
{[%emt 00:00:20]} 37. g4 {[%clk 00:19:52]} {[%emt 00:00:51]} Qe3+ {[%clk
00:22:13]} {[%emt 00:00:21]} 0-1

[Event "Mistrovství Čech mládeže 2023 - HD14"]
[Site "Harrachov, Czech Republic"]
[Date "2023.10.27"]
[Round "8.5"]
[White "Pogorelskiy, Boris"]
[Black "Křivka, Matěj"]
[Result "1/2-1/2"]
[TimeControl "90m + 30s"]
[WhiteElo "1541"]
[BlackElo "1665"]

1. e4 {[%clk 01:30:51]} {[%emt 00:00:08]} c5 {[%clk 01:30:51]} {[%emt
00:00:09]} 2. Nf3 {[%clk 01:31:17]} {[%emt 00:00:04]} e6 {[%clk 01:31:06]}
{[%emt 00:00:15]} 3. d4 {[%clk 01:31:42]} {[%emt 00:00:05]} cxd4 {[%clk
01:31:30]} {[%emt 00:00:06]} 4. Nxd4 {[%clk 01:32:08]} {[%emt 00:00:04]} Nc6
{[%clk 01:31:52]} {[%emt 00:00:08]} 5. Be3 {[%clk 01:31:20]} {[%emt 00:01:19]}
a6 {[%clk 01:31:40]} {[%emt 00:00:42]} 6. Bd3 {[%clk 01:31:11]} {[%emt
00:00:38]} Qc7 {[%clk 01:30:49]} {[%emt 00:01:21]} 7. Qe2 {[%clk 01:29:46]}
{[%emt 00:01:55]} Nf6 {[%clk 01:29:36]} {[%emt 00:01:43]} 8. O-O {[%emt
00:00:57]} Be7 {[%clk 01:28:20]} {[%emt 00:01:43]} 9. c4 {[%clk 01:29:17]}
{[%emt 00:00:36]} O-O {[%clk 01:27:06]} {[%emt 00:01:44]} 10. Nc3 {[%clk
01:28:49]} {[%emt 00:00:58]} b6 {[%clk 01:23:53]} {[%emt 00:03:43]} 11. f4
{[%clk 01:24:14]} {[%emt 00:05:05]} Nxd4 {[%clk 01:22:05]} {[%emt 00:02:17]} 12.
Bxd4 {[%clk 01:24:38]} {[%emt 00:00:06]} Bc5 {[%clk 01:21:52]} {[%emt
00:00:44]} 13. Bxc5 {[%clk 01:23:53]} {[%emt 00:01:16]} Qxc5+ {[%clk 01:20:20]}
{[%emt 00:02:01]} 14. Qf2 {[%clk 01:23:56]} {[%emt 00:00:26]} Qxf2+ {[%emt
00:02:15]} 15. Rxf2 {[%clk 01:24:18]} {[%emt 00:00:01]} d6 {[%clk 01:14:54]}
{[%emt 00:04:19]} 16. Rd1 {[%clk 01:20:41]} {[%emt 00:04:07]} Bb7 {[%clk
01:02:01]} {[%emt 00:13:23]} 17. Bc2 {[%clk 01:17:26]} {[%emt 00:03:46]} Rfc8
{[%clk 00:54:14]} {[%emt 00:08:16]} 18. Rxd6 {[%clk 01:11:30]} {[%emt
00:06:26]} Rxc4 {[%clk 00:52:25]} {[%emt 00:02:18]} 19. e5 {[%clk 01:11:49]}
{[%emt 00:00:11]} Ng4 {[%clk 00:35:01]} {[%emt 00:17:54]} 20. Rfd2 {[%clk
01:12:12]} {[%emt 00:00:07]} g6 {[%clk 00:33:21]} {[%emt 00:02:11]} 21. Rxb6
{[%clk 01:10:50]} {[%emt 00:01:52]} Bd5 {[%clk 00:31:24]} {[%emt 00:02:26]} 22.
Bb3 {[%clk 01:04:58]} {[%emt 00:06:22]} Rxf4 {[%clk 00:30:10]} {[%emt
00:01:43]} 23. Bxd5 {[%clk 01:05:13]} {[%emt 00:00:15]} exd5 {[%clk 00:30:28]}
{[%emt 00:00:11]} 24. Nxd5 {[%clk 01:05:42]} {[%emt 00:00:02]} Re4 {[%clk
00:23:06]} {[%emt 00:07:52]} 25. Nf6+ {[%clk 01:05:34]} {[%emt 00:00:38]} Nxf6
{[%clk 00:23:27]} {[%emt 00:00:09]} 26. exf6 {[%clk 01:05:58]} {[%emt
00:00:06]} Ra4 {[%clk 00:19:20]} {[%emt 00:04:37]} 27. Rbd6 {[%clk 01:00:48]}
{[%emt 00:05:41]} h6 {[%clk 00:18:30]} {[%emt 00:01:20]} 28. Rd8+ {[%clk
01:00:47]} {[%emt 00:00:30]} Rxd8 {[%clk 00:18:54]} {[%emt 00:00:06]} 29. Rxd8+
{[%clk 01:01:10]} {[%emt 00:00:08]} Kh7 {[%clk 00:19:21]} {[%emt 00:00:02]} 30.
Rf8 {[%clk 01:01:39]} g5 {[%clk 00:16:11]} {[%emt 00:03:40]} 31. Rxf7+ {[%clk
01:01:14]} {[%emt 00:00:55]} Kg6 {[%clk 00:16:32]} {[%emt 00:00:09]} 32. Ra7
{[%clk 01:01:37]} {[%emt 00:00:08]} Kxf6 {[%clk 00:15:14]} {[%emt 00:01:48]} 33.
a3 {[%clk 01:01:54]} {[%emt 00:00:13]} Kf5 {[%clk 00:13:53]} {[%emt 00:01:50]}
34. Rh7 {[%clk 01:02:05]} {[%emt 00:00:19]} Kg6 {[%clk 00:13:41]} {[%emt
00:00:41]} 35. Rb7 {[%clk 01:02:25]} {[%emt 00:00:11]} Kh5 {[%clk 00:10:20]}
{[%emt 00:03:51]} 36. Rb6 {[%clk 01:02:36]} {[%emt 00:00:19]} g4 {[%clk
00:07:34]} {[%emt 00:03:16]} 37. Kf2 {[%clk 01:02:02]} {[%emt 00:01:05]} Rc4
{[%clk 00:05:25]} {[%emt 00:02:39]} 38. Kg3 {[%clk 01:01:57]} {[%emt 00:00:35]}
Ra4 {[%clk 00:05:07]} {[%emt 00:00:48]} 39. Rb4 {[%clk 01:01:46]} {[%emt
00:00:40]} Rxb4 {[%clk 00:05:10]} {[%emt 00:00:27]} 40. axb4 {[%emt 00:00:09]}
Kg5 {[%clk 00:05:06]} {[%emt 00:00:32]} 41. h3 {[%clk 01:02:00]} {[%emt
00:00:38]} h5 {[%clk 00:04:32]} {[%emt 00:01:05]} 42. Kf2 {[%clk 00:59:12]}
{[%emt 00:03:18]} Kf4 {[%clk 00:02:36]} {[%emt 00:02:26]} 43. hxg4 {[%clk
00:55:29]} {[%emt 00:04:12]} hxg4 {[%clk 00:02:41]} {[%emt 00:00:25]} 44. g3+
{[%clk 00:53:33]} {[%emt 00:02:27]} Ke4 {[%clk 00:02:26]} {[%emt 00:00:45]} 45.
Ke2 {[%clk 00:53:48]} {[%emt 00:00:15]} Kd4 {[%clk 00:02:23]} {[%emt 00:00:31]}
46. Kd2 {[%clk 00:54:05]} {[%emt 00:00:15]} Ke4 {[%clk 00:02:09]} {[%emt
00:00:43]} 1/2-1/2

[Event "Mistrovství Čech mládeže 2023 - HD14"]
[Site "Harrachov, Czech Republic"]
[Date "2023.10.27"]
[Round "8.6"]
[White "Chernyy, Andrey"]
[Black "Slívová, Linda"]
[Result "1/2-1/2"]
[TimeControl "90m + 30s"]
[WhiteElo "1655"]
[BlackElo "1624"]

1. e4 {[%clk 01:30:58]} {[%emt 00:00:02]} c6 {[%clk 01:30:54]} {[%emt
00:00:06]} 2. d4 {[%clk 01:31:23]} {[%emt 00:00:05]} d5 {[%clk 01:31:18]}
{[%emt 00:00:06]} 3. e5 {[%clk 01:31:49]} {[%emt 00:00:04]} Bf5 {[%clk
01:31:36]} {[%emt 00:00:11]} 4. h4 {[%clk 01:32:11]} {[%emt 00:00:08]} Qb6
{[%clk 01:31:42]} {[%emt 00:00:24]} 5. h5 {[%clk 01:30:52]} {[%emt 00:01:49]}
h6 {[%clk 01:30:18]} {[%emt 00:01:54]} 6. g4 {[%clk 01:29:06]} {[%emt
00:02:16]} Bd7 {[%clk 01:29:22]} {[%emt 00:01:25]} 7. c3 {[%clk 01:24:50]}
{[%emt 00:04:46]} e6 {[%clk 01:27:46]} {[%emt 00:02:06]} 8. Qb3 {[%clk
01:16:49]} {[%emt 00:08:31]} c5 {[%clk 01:23:55]} {[%emt 00:04:21]} 9. Be3
{[%clk 01:13:29]} {[%emt 00:03:49]} c4 {[%clk 01:19:11]} {[%emt 00:05:14]} 10.
Qc2 {[%clk 01:10:15]} {[%emt 00:03:44]} Nc6 {[%clk 01:13:41]} {[%emt 00:06:00]}
11. Nd2 {[%clk 01:07:08]} {[%emt 00:03:36]} Qa5 {[%clk 01:07:04]} {[%emt
00:07:07]} 12. Bh3 {[%clk 00:53:24]} {[%emt 00:14:13]} b5 {[%clk 00:55:15]}
{[%emt 00:12:20]} 13. Ne2 {[%clk 00:52:10]} {[%emt 00:01:42]} b4 {[%clk
00:51:52]} {[%emt 00:03:53]} 14. O-O {[%clk 00:50:28]} {[%emt 00:02:11]} Nge7
{[%clk 00:43:46]} {[%emt 00:08:37]} 15. f4 {[%clk 00:45:12]} {[%emt 00:05:45]}
Qd8 {[%clk 00:37:25]} {[%emt 00:06:51]} 16. f5 {[%clk 00:41:49]} {[%emt
00:03:53]} Nc8 {[%clk 00:28:41]} {[%emt 00:09:14]} 17. Nf4 {[%clk 00:36:34]}
{[%emt 00:05:45]} Qe7 {[%clk 00:21:29]} {[%emt 00:07:42]} 18. Rae1 {[%clk
00:21:14]} {[%emt 00:15:49]} Nb6 {[%clk 00:18:19]} {[%emt 00:03:40]} 19. fxe6
{[%clk 00:16:30]} {[%emt 00:05:14]} Bxe6 {[%clk 00:18:33]} {[%emt 00:00:15]} 20.
Rf3 {[%clk 00:15:53]} {[%emt 00:01:07]} O-O-O {[%clk 00:13:34]} {[%emt
00:05:29]} 21. Nxe6 {[%clk 00:14:48]} {[%emt 00:01:35]} fxe6 {[%clk 00:13:52]}
{[%emt 00:00:12]} 22. Qg6 {[%clk 00:11:30]} {[%emt 00:03:48]} Qe8 {[%clk
00:12:28]} {[%emt 00:01:55]} 23. Qc2 {[%clk 00:09:00]} {[%emt 00:03:00]} Rd7
{[%clk 00:09:53]} {[%emt 00:03:04]} 24. Ref1 {[%clk 00:07:19]} {[%emt
00:02:11]} Nd8 {[%clk 00:09:45]} {[%emt 00:00:38]} 25. b3 {[%clk 00:07:13]}
{[%emt 00:00:36]} Rc7 {[%clk 00:09:40]} {[%emt 00:00:35]} 26. cxb4 {[%clk
00:06:06]} {[%emt 00:01:37]} Bxb4 {[%clk 00:09:05]} {[%emt 00:01:05]} 27. bxc4
{[%clk 00:05:58]} {[%emt 00:00:38]} Nxc4 {[%clk 00:08:58]} {[%emt 00:00:37]} 28.
Nxc4 {[%clk 00:06:09]} {[%emt 00:00:18]} Rxc4 {[%clk 00:09:24]} {[%emt
00:00:04]} 29. Qb3 {[%clk 00:05:09]} {[%emt 00:01:28]} a5 {[%clk 00:06:22]}
{[%emt 00:03:33]} 30. Rb1 {[%clk 00:03:31]} {[%emt 00:02:08]} Rc3 {[%clk
00:06:30]} {[%emt 00:00:22]} 31. Qb2 {[%clk 00:03:02]} {[%emt 00:00:59]} Rf8
{[%clk 00:06:41]} {[%emt 00:00:18]} 32. Rxf8 {[%clk 00:02:32]} {[%emt
00:01:00]} Qxf8 {[%clk 00:07:05]} {[%emt 00:00:06]} 33. Rc1 {[%clk 00:01:49]}
{[%emt 00:01:14]} Rxc1+ {[%clk 00:05:53]} {[%emt 00:01:42]} 34. Qxc1+ {[%clk
00:02:18]} {[%emt 00:00:01]} Kd7 {[%clk 00:06:15]} {[%emt 00:00:08]} 35. Bf1
{[%clk 00:01:29]} {[%emt 00:01:18]} Nc6 {[%clk 00:05:03]} {[%emt 00:01:44]} 36.
Bb5 {[%clk 00:01:24]} {[%emt 00:00:35]} Qc8 {[%clk 00:05:27]} {[%emt 00:00:05]}
37. Bd2 {[%clk 00:01:01]} {[%emt 00:00:54]} Qb7 {[%clk 00:04:40]} {[%emt
00:01:18]} 38. a4 {[%clk 00:00:49]} {[%emt 00:00:42]} Qb6 {[%clk 00:04:06]}
{[%emt 00:01:04]} 39. Qxc6+ {[%clk 00:00:34]} {[%emt 00:00:44]} Qxc6 {[%clk
00:04:30]} {[%emt 00:00:06]} 40. Bxc6+ {[%clk 00:01:01]} {[%emt 00:00:03]} Kxc6
{[%clk 00:04:54]} {[%emt 00:00:05]} 41. Be3 {[%clk 00:00:58]} {[%emt 00:00:34]}
Bc3 {[%clk 00:03:49]} {[%emt 00:01:35]} 42. Kf2 {[%clk 00:01:10]} {[%emt
00:00:18]} Kd7 {[%clk 00:03:44]} {[%emt 00:00:35]} 43. Ke2 {[%clk 00:00:57]}
{[%emt 00:00:42]} Ke7 {[%clk 00:03:02]} {[%emt 00:01:12]} 44. Kd3 {[%clk
00:01:13]} {[%emt 00:00:14]} Bb4 {[%clk 00:02:57]} {[%emt 00:00:36]} 45. Bd2
{[%clk 00:00:46]} {[%emt 00:00:57]} Bxd2 {[%clk 00:02:41]} {[%emt 00:00:46]} 46.
Kxd2 {[%clk 00:01:13]} {[%emt 00:00:02]} Kf7 {[%clk 00:03:05]} {[%emt
00:00:06]} 47. Ke3 {[%clk 00:01:34]} {[%emt 00:00:09]} g5 {[%clk 00:02:23]}
{[%emt 00:01:12]} 48. Kd3 {[%clk 00:00:42]} 1/2-1/2

[Event "Mistrovství Čech mládeže 2023 - HD14"]
[Site "Harrachov, Czech Republic"]
[Date "2023.10.27"]
[Round "8.7"]
[White "Petrášek, Jiří"]
[Black "Migalko, Dmitriy"]
[Result "0-1"]
[TimeControl "90m + 30s"]
[WhiteElo "1423"]
[BlackElo "1842"]

1. e4 {[%clk 01:30:57]} {[%emt 00:00:01]} c5 {[%clk 01:30:55]} {[%emt
00:00:05]} 2. c3 {[%clk 01:31:16]} {[%emt 00:00:11]} e6 {[%clk 01:31:09]}
{[%emt 00:00:15]} 3. d4 {[%clk 01:30:37]} d5 {[%clk 01:31:27]} {[%emt
00:01:22]} 4. exd5 exd5 5. Nf3 {[%clk 01:29:46]} {[%emt 00:00:21]} Nc6 6. Be3
{[%emt 00:04:27]} c4 {[%clk 01:28:35]} {[%emt 00:00:35]} 7. Nbd2 {[%clk
01:28:44]} {[%emt 00:01:30]} Bf5 {[%clk 01:27:04]} {[%emt 00:02:01]} 8. Bg5
{[%clk 01:27:45]} {[%emt 00:01:29]} Be7 {[%clk 01:21:12]} {[%emt 00:06:23]} 9.
Bf4 {[%clk 01:27:25]} {[%emt 00:00:50]} Qb6 {[%clk 01:07:50]} {[%emt 00:13:52]}
10. Qc1 {[%clk 01:15:33]} {[%emt 00:12:22]} O-O-O {[%clk 01:02:13]} {[%emt
00:06:07]} 11. Be2 {[%clk 01:13:41]} {[%emt 00:02:22]} Re8 {[%clk 00:58:38]}
{[%emt 00:04:04]} 12. O-O {[%clk 01:10:08]} {[%emt 00:04:02]} Ba3 {[%clk
00:54:28]} {[%emt 00:04:41]} 13. bxa3 {[%clk 01:10:13]} {[%emt 00:00:26]} Rxe2
{[%clk 00:54:42]} {[%emt 00:00:15]} 14. Be3 {[%clk 01:10:08]} {[%emt 00:00:35]}
Bd3 {[%clk 00:48:02]} {[%emt 00:07:09]} 15. Rd1 {[%clk 01:09:32]} Nf6 {[%clk
00:47:52]} {[%emt 00:01:46]} 16. h3 {[%clk 01:03:23]} Ne4 {[%clk 00:45:49]}
{[%emt 00:09:13]} 17. Nxe4 {[%clk 01:03:08]} Rc2 {[%clk 00:41:25]} {[%emt
00:05:37]} 18. Nd6+ {[%clk 01:02:00]} Kc7 {[%clk 00:40:33]} {[%emt 00:03:01]}
19. Bf4 {[%clk 00:59:51]} Rxc1 {[%emt 00:04:42]} 20. Nxc4+ {[%clk 01:00:12]}
Kd8 {[%clk 00:39:19]} {[%emt 00:00:20]} 21. Nxb6 {[%clk 01:00:19]} Rxa1 {[%clk
00:39:41]} {[%emt 00:00:33]} 22. Rxa1 {[%clk 01:00:28]} axb6 {[%clk 00:40:06]}
{[%emt 00:00:26]} 23. Rd1 {[%clk 00:58:52]} Be2 {[%clk 00:40:05]} {[%emt
00:02:37]} 24. Rb1 {[%clk 00:59:02]} b5 {[%clk 00:40:07]} {[%emt 00:00:49]} 25.
a4 {[%clk 00:58:07]} b4 {[%clk 00:39:20]} {[%emt 00:02:41]} 26. cxb4 {[%clk
00:57:00]} {[%emt 00:01:38]} Bxf3 {[%clk 00:39:42]} {[%emt 00:00:08]} 27. gxf3
{[%clk 00:57:21]} {[%emt 00:00:09]} Nxd4 {[%clk 00:39:49]} {[%emt 00:00:22]} 28.
Kg2 {[%clk 00:56:57]} {[%emt 00:00:54]} Ke7 {[%clk 00:38:15]} {[%emt 00:02:04]}
29. Be3 {[%clk 00:53:08]} {[%emt 00:04:18]} Ne6 {[%clk 00:38:02]} {[%emt
00:00:44]} 30. Rd1 {[%clk 00:47:54]} {[%emt 00:05:44]} Rd8 {[%clk 00:35:48]}
{[%emt 00:02:41]} 31. Bd4 {[%clk 00:43:57]} {[%emt 00:04:30]} Rc8 {[%clk
00:33:19]} {[%emt 00:02:59]} 32. Be5 {[%clk 00:32:32]} {[%emt 00:11:55]} f6
{[%clk 00:33:04]} {[%emt 00:00:45]} 33. Bd4 {[%clk 00:26:34]} {[%emt 00:06:29]}
Rc4 {[%clk 00:31:58]} {[%emt 00:01:34]} 34. Bb2 {[%clk 00:25:01]} {[%emt
00:02:05]} d4 {[%clk 00:28:56]} {[%emt 00:03:32]} 35. Kg3 {[%clk 00:24:46]}
{[%emt 00:00:45]} Kd6 {[%clk 00:26:49]} {[%emt 00:02:36]} 36. a3 {[%clk
00:23:21]} {[%emt 00:01:57]} Kd5 {[%clk 00:26:33]} {[%emt 00:00:44]} 37. Rd2
{[%clk 00:22:25]} {[%emt 00:01:28]} g6 {[%clk 00:23:12]} {[%emt 00:03:52]} 38.
Rd1 {[%clk 00:18:23]} {[%emt 00:04:31]} Rc2 {[%clk 00:20:07]} {[%emt 00:03:35]}
39. Bc1 {[%clk 00:13:57]} {[%emt 00:04:56]} Rc3 {[%clk 00:17:28]} {[%emt
00:03:07]} 40. Bb2 {[%clk 00:13:41]} {[%emt 00:00:47]} Rb3 {[%clk 00:17:31]}
{[%emt 00:00:26]} 41. Rd2 {[%clk 00:13:36]} {[%emt 00:00:36]} Kc4 {[%clk
00:15:55]} {[%emt 00:02:07]} 42. Kg2 {[%clk 00:12:57]} {[%emt 00:01:09]} Rd3
{[%clk 00:12:19]} {[%emt 00:04:06]} 43. Bc1 {[%clk 00:11:45]} {[%emt 00:01:42]}
Rxd2 {[%clk 00:12:13]} {[%emt 00:00:35]} 44. Bxd2 {[%clk 00:12:09]} {[%emt
00:00:06]} Kd3 {[%clk 00:12:31]} {[%emt 00:00:12]} 45. Bh6 {[%clk 00:11:35]}
{[%emt 00:01:04]} g5 {[%clk 00:11:52]} {[%emt 00:01:08]} 46. b5 {[%clk
00:11:34]} {[%emt 00:00:32]} Kc2 {[%clk 00:11:17]} {[%emt 00:01:05]} 47. Bf8
{[%clk 00:11:11]} {[%emt 00:00:54]} Nxf8 {[%clk 00:11:27]} {[%emt 00:00:20]} 48.
a5 {[%clk 00:11:23]} {[%emt 00:00:17]} Nd7 {[%clk 00:11:24]} {[%emt 00:00:34]}
49. a6 {[%clk 00:11:38]} {[%emt 00:00:16]} bxa6 {[%clk 00:11:46]} {[%emt
00:00:08]} 50. bxa6 {[%clk 00:12:02]} {[%emt 00:00:04]} Nb6 {[%clk 00:12:13]}
{[%emt 00:00:05]} 51. a4 {[%clk 00:12:28]} {[%emt 00:00:05]} d3 {[%clk
00:12:34]} {[%emt 00:00:08]} 52. a5 {[%clk 00:12:47]} {[%emt 00:00:11]} Na8
{[%clk 00:12:59]} {[%emt 00:00:05]} 0-1

[Event "Mistrovství Čech mládeže 2023 - HD14"]
[Site "Harrachov, Czech Republic"]
[Date "2023.10.27"]
[Round "8.8"]
[White "Jakubše, Tamae Severína"]
[Black "Kravchenko, Andrey"]
[Result "1-0"]
[TimeControl "90m + 30s"]
[WhiteElo "1627"]
[BlackElo "1541"]

1. e4 {[%clk 01:30:57]} {[%emt 00:00:02]} c5 {[%clk 01:30:55]} {[%emt
00:00:05]} 2. c3 {[%clk 01:31:23]} {[%emt 00:00:04]} d5 {[%clk 01:31:15]}
{[%emt 00:00:10]} 3. exd5 {[%clk 01:31:48]} {[%emt 00:00:06]} Qxd5 {[%clk
01:31:36]} {[%emt 00:00:07]} 4. d4 {[%clk 01:32:15]} {[%emt 00:00:05]} Nf6
{[%clk 01:30:16]} {[%emt 00:01:49]} 5. Nf3 {[%clk 01:32:37]} {[%emt 00:00:08]}
Bf5 {[%clk 01:24:54]} {[%emt 00:05:51]} 6. Be3 {[%clk 01:30:17]} {[%emt
00:02:51]} cxd4 {[%clk 01:20:10]} {[%emt 00:05:14]} 7. Nxd4 {[%clk 01:22:33]}
{[%emt 00:08:14]} Bd7 {[%clk 01:13:19]} {[%emt 00:07:19]} 8. Qb3 {[%clk
01:17:43]} {[%emt 00:05:20]} Qxb3 {[%clk 01:07:54]} {[%emt 00:05:57]} 9. axb3
{[%clk 01:17:20]} {[%emt 00:00:54]} a6 {[%clk 00:58:39]} {[%emt 00:09:44]} 10.
Nd2 {[%clk 01:00:11]} {[%emt 00:17:38]} Nd5 {[%clk 00:44:57]} {[%emt 00:14:12]}
11. Nc4 {[%clk 00:58:14]} {[%emt 00:02:27]} Nc6 {[%clk 00:36:59]} {[%emt
00:08:27]} 12. b4 {[%clk 00:51:12]} {[%emt 00:07:33]} Nxe3 {[%clk 00:35:46]}
{[%emt 00:01:43]} 13. fxe3 {[%clk 00:50:55]} {[%emt 00:00:46]} Nxd4 {[%clk
00:32:01]} {[%emt 00:04:15]} 14. exd4 {[%clk 00:51:01]} {[%emt 00:00:24]} Bc6
{[%clk 00:26:33]} {[%emt 00:05:57]} 15. Ne5 {[%clk 00:49:10]} {[%emt 00:02:22]}
Bd5 {[%clk 00:22:04]} {[%emt 00:04:54]} 16. b5 {[%clk 00:43:02]} {[%emt
00:06:43]} a5 {[%clk 00:20:14]} {[%emt 00:02:20]} 17. Bc4 {[%clk 00:34:06]}
{[%emt 00:09:26]} e6 {[%clk 00:18:11]} {[%emt 00:02:33]} 18. O-O {[%clk
00:32:08]} {[%emt 00:02:29]} f6 {[%clk 00:17:54]} {[%emt 00:00:47]} 19. Bxd5
{[%clk 00:32:14]} {[%emt 00:00:23]} exd5 {[%clk 00:18:16]} {[%emt 00:00:09]} 20.
Nd3 {[%clk 00:31:16]} {[%emt 00:01:28]} Bd6 {[%clk 00:16:43]} {[%emt 00:02:02]}
21. Rf5 {[%clk 00:17:26]} {[%emt 00:14:21]} Kf7 {[%clk 00:13:03]} {[%emt
00:04:08]} 22. Rxd5 {[%clk 00:16:38]} {[%emt 00:01:20]} Rhd8 {[%clk 00:12:32]}
{[%emt 00:01:00]} 23. Rf5 {[%clk 00:16:45]} {[%emt 00:00:24]} Re8 {[%clk
00:12:02]} {[%emt 00:00:59]} 24. Rf2 {[%clk 00:12:20]} {[%emt 00:04:54]} Re3
{[%clk 00:11:23]} {[%emt 00:01:09]} 25. Nf4 {[%clk 00:11:39]} {[%emt 00:01:12]}
Rae8 {[%clk 00:08:44]} {[%emt 00:03:09]} 26. Nd5 {[%clk 00:09:28]} {[%emt
00:02:42]} Re1+ {[%clk 00:08:52]} {[%emt 00:00:22]} 27. Rf1 {[%clk 00:09:29]}
{[%emt 00:00:29]} R1e2 {[%clk 00:07:40]} {[%emt 00:01:41]} 28. Nb6 {[%clk
00:07:31]} {[%emt 00:02:28]} Bc7 {[%clk 00:06:50]} {[%emt 00:01:19]} 29. Nc4
{[%clk 00:07:32]} {[%emt 00:00:31]} Rc2 {[%clk 00:06:40]} {[%emt 00:00:40]} 30.
Rf2 {[%clk 00:07:49]} {[%emt 00:00:14]} Ree2 {[%clk 00:02:40]} {[%emt
00:04:29]} 31. Rxe2 {[%clk 00:08:01]} {[%emt 00:00:18]} Rxe2 {[%clk 00:03:03]}
{[%emt 00:00:07]} 32. b6 {[%clk 00:08:16]} {[%emt 00:00:16]} Bb8 {[%clk
00:02:32]} {[%emt 00:01:00]} 33. Rxa5 {[%clk 00:08:16]} {[%emt 00:00:31]} Re1+
{[%clk 00:01:56]} {[%emt 00:01:05]} 34. Kf2 {[%clk 00:08:41]} {[%emt 00:00:06]}
Re7 {[%clk 00:02:05]} {[%emt 00:00:20]} 35. g3 {[%clk 00:08:32]} {[%emt
00:00:40]} Ke6 {[%clk 00:01:45]} {[%emt 00:00:48]} 36. Ne3 {[%clk 00:07:15]}
{[%emt 00:01:49]} Kd7 {[%clk 00:01:23]} {[%emt 00:00:51]} 37. c4 {[%clk
00:06:40]} {[%emt 00:01:06]} Kc6 {[%clk 00:01:15]} {[%emt 00:00:36]} 38. b4
{[%clk 00:06:19]} {[%emt 00:00:53]} Rf7 {[%clk 00:00:39]} {[%emt 00:01:03]} 39.
Rc5+ {[%clk 00:06:18]} {[%emt 00:00:33]} Kd7 {[%clk 00:00:48]} {[%emt
00:00:20]} 40. b5 {[%clk 00:05:12]} {[%emt 00:01:37]} g6 {[%clk 00:00:59]}
{[%emt 00:00:18]} 41. Rd5+ {[%clk 00:05:20]} {[%emt 00:00:23]} Ke6 {[%clk
00:01:07]} {[%emt 00:00:19]} 42. Rd8 {[%clk 00:05:27]} {[%emt 00:00:26]} Bd6
{[%clk 00:01:02]} {[%emt 00:00:34]} 43. c5 {[%clk 00:05:36]} {[%emt 00:00:23]}
Be7 {[%clk 00:00:40]} {[%emt 00:00:50]} 44. Rb8 {[%clk 00:05:36]} {[%emt
00:00:28]} Bf8 {[%clk 00:00:42]} {[%emt 00:00:30]} 45. c6 {[%clk 00:05:43]}
{[%emt 00:00:25]} bxc6 {[%clk 00:00:39]} {[%emt 00:00:33]} 46. bxc6 {[%clk
00:06:06]} {[%emt 00:00:08]} Bd6 {[%clk 00:00:38]} {[%emt 00:00:30]} 47. d5+
{[%clk 00:06:11]} {[%emt 00:00:26]} 1-0